fUSD/lending_fUSD_20251211
["ID","MTS","AMOUNT","RATE_DAILY","PERIOD"]
[398216184,1765437871970,-500.0,0.00038356,60]
[398216185,1765437872018,-500.0,0.00038356,60]
[398216186,1765437872066,-500.0,0.00038356,60]
[398216187,1765437872114,-500.0,0.00038356,60]
[398216188,1765437872164,-500.0,0.00038356,60]
[398216189,1765437872213,-500.0,0.00038356,60]
[398216190,1765437872260,-500.0,0.00038356,60]
[398216191,1765437872309,-500.0,0.00038356,60]
[398216192,1765437872356,-500.0,0.00038356,60]
[398216193,1765437872406,-500.0,0.00038356,60]
[398216194,1765437872454,-500.0,0.00038356,60]
[398216195,1765437872508,-853.6,0.00038356,60]
[398216196,1765437872555,-500.0,0.00038356,60]
[398216197,1765437872602,-619.25,0.00038356,60]
[398216198,1765437872649,-196.26226762,0.00038356,60]
[398216199,1765437872697,-151.0,0.00038356,31]
[398216200,1765437872741,-853.6,0.00038356,60]
[398216201,1765437872785,-500.0,0.00038356,60]
[398216202,1765437872832,-619.25,0.00038356,60]
[398216203,1765437872883,-853.6,0.00038356,60]
[398216204,1765437872931,-151.0,0.00038356,31]
[398216205,1765437872980,-500.0,0.00038356,60]
[398216206,1765437873028,-619.25,0.00038356,60]
[398216207,1765437873077,-853.6,0.00038356,60]
[398216208,1765437873132,-500.0,0.00038356,60]
[398216209,1765437873187,-151.0,0.00038356,31]
[398216210,1765437873247,-619.25,0.00038356,60]
[398216211,1765437873298,-853.6,0.00038356,60]
[398216212,1765437873353,-500.0,0.00038356,60]
[398216213,1765437873407,-151.0,0.00038356,31]
[398216214,1765437873466,-619.25,0.00038356,60]
[398216215,1765437873518,-853.6,0.00038356,60]
[398216216,1765437873569,-500.0,0.00038356,60]
[398216217,1765437873620,-476.86212512,0.00038356,60]
[398216218,1765437873671,-151.0,0.00038356,31]
[398216219,1765437873720,-619.25,0.00038356,60]
[398216220,1765437873770,-853.6,0.00038356,60]
[398216221,1765437873824,-151.0,0.00038356,31]
[398216222,1765437873875,-510.95,0.00038356,60]
[398216223,1765437873928,-853.6,0.00038356,60]
[398216224,1765437873980,-510.95,0.00038356,60]
[398216225,1765437874030,-235.647838,0.00038356,31]
[398216226,1765437874080,-853.6,0.00038356,60]
[398216227,1765437874130,-510.95,0.00038356,60]
[398216228,1765437874182,-619.25,0.00038356,60]
[398216229,1765437874233,-853.6,0.00038356,60]
[398216230,1765437874285,-510.95,0.00038356,60]
[398216231,1765437874338,-619.25,0.00038356,60]
[398216232,1765437874387,-853.6,0.00038356,60]
[398216233,1765437874436,-510.95,0.00038356,60]
[398216234,1765437874487,-500.0,0.00038356,60]
[398216235,1765437874538,-619.25,0.00038356,60]
[398216236,1765437874592,-853.6,0.00038356,60]
[398216237,1765437874640,-510.95,0.00038356,60]
[398216238,1765437874689,-500.0,0.00038356,60]
[398216239,1765437874739,-853.6,0.00038356,60]
[398216240,1765437874788,-619.25,0.00038356,60]
[398216241,1765437874838,-510.95,0.00038356,60]
[398216242,1765437874887,-500.0,0.00038356,60]
[398216243,1765437874939,-853.6,0.00038356,60]
[398216244,1765437874990,-619.25,0.00038356,60]
[398216245,1765437875038,-510.95,0.00038356,60]
[398216246,1765437875088,-500.0,0.00038356,60]
[398216247,1765437875277,-853.6,0.00038356,60]
[398216248,1765437875328,-619.25,0.00038356,60]
[398216249,1765437875379,-510.95,0.00038356,60]
[398216250,1765437875429,-521.44355012,0.00038356,60]
[398216251,1765437875478,-500.0,0.00038356,60]
[398216252,1765437875527,-853.6,0.00038356,60]
[398216253,1765437875575,-619.25,0.00038356,60]
[398216254,1765437875622,-500.0,0.00038356,60]
[398216255,1765437875669,-510.95,0.00038356,60]
[398216256,1765437875717,-853.6,0.00038356,60]
[398216257,1765437875765,-619.25,0.00038356,60]
[398216258,1765437875813,-500.0,0.00038356,60]
[398216259,1765437875861,-500.0,0.00038356,60]
[398216260,1765437875909,-853.6,0.00038356,60]
[398216261,1765437875957,-510.95,0.00038356,60]
[398216262,1765437876004,-619.25,0.00038356,60]
[398216263,1765437876051,-500.0,0.00038356,60]
[398216264,1765437876103,-500.0,0.00038356,60]
[398216265,1765437876154,-853.6,0.00038356,60]
[398216266,1765437876206,-510.95,0.00038356,60]
[398216267,1765437876259,-500.0,0.00038356,60]
[398216268,1765437876310,-619.25,0.00038356,60]
[398216269,1765437876362,-500.0,0.00038356,60]
[398216270,1765437876414,-853.6,0.00038356,60]
[398216271,1765437876467,-510.95,0.00038356,60]
[398216272,1765437876519,-500.0,0.00038356,60]
[398216273,1765437876569,-619.25,0.00038356,60]
[398216274,1765437876617,-500.0,0.00038356,60]
[398216275,1765437876666,-853.6,0.00038356,60]
[398216276,1765437876715,-510.95,0.00038356,60]
[398216277,1765437876764,-500.0,0.00038356,60]
[398216278,1765437876814,-619.25,0.00038356,60]
[398216279,1765437876861,-500.0,0.00038356,60]
[398216280,1765437876907,-510.95,0.00038356,60]
[398216281,1765437876954,-500.0,0.00038356,60]
[398216282,1765437877000,-619.25,0.00038356,60]
[398216283,1765437877046,-500.0,0.00038356,60]
[398216284,1765437877091,-853.6,0.00038356,60]
[398216285,1765437877138,-510.95,0.00038356,60]
[398216286,1765437877185,-500.0,0.00038356,60]
[398216287,1765437877235,-619.25,0.00038356,60]
[398216288,1765437877282,-500.0,0.00038356,60]
[398216289,1765437877330,-853.6,0.00038356,60]
[398216290,1765437877379,-500.0,0.00038356,60]
[398216291,1765437877429,-510.95,0.00038356,60]
[398216292,1765437877481,-500.0,0.00038356,60]
[398216293,1765437877530,-619.25,0.00038356,60]
[398216294,1765437877576,-500.0,0.00038356,60]
[398216295,1765437877622,-853.63641462,0.00038356,60]
[398216296,1765437877666,-500.0,0.00038356,60]
[398216297,1765437877716,-500.0,0.00038356,60]
[398216298,1765437877770,-500.0,0.00038356,60]
[398216299,1765437877816,-619.25,0.00038356,60]
[398216300,1765437877862,-500.0,0.00038356,60]
[398216301,1765437877908,-500.0,0.00038356,60]
[398216302,1765437877953,-500.0,0.00038356,60]
[398216303,1765437878000,-619.25,0.00038356,60]
[398216304,1765437878046,-500.0,0.00038356,60]
[398216305,1765437878093,-500.0,0.00038356,60]
[398216306,1765437878141,-500.0,0.00038356,60]
[398216307,1765437878192,-619.25718511,0.00038356,60]
[398216308,1765437878243,-685.82,0.00038356,60]
[398216309,1765437878294,-500.0,0.00038356,60]
[398216310,1765437878346,-500.0,0.00038356,60]
[398216311,1765437878399,-500.0,0.00038356,60]
[398216312,1765437878451,-685.82,0.00038356,60]
[398216313,1765437878505,-369.79273584,0.00038356,60]
[398216314,1765437878556,-500.0,0.00038356,60]
[398216315,1765437878605,-500.0,0.00038356,60]
[398216316,1765437878651,-785.24,0.00038356,60]
[398216317,1765437878701,-685.82,0.00038356,60]
[398216318,1765437878759,-500.0,0.00038356,60]
[398216319,1765437878815,-500.0,0.00038356,60]
[398216320,1765437878871,-785.24,0.00038356,60]
[398216321,1765437878923,-685.82,0.00038356,60]
[398216322,1765437879124,-500.0,0.00038356,60]
[398216323,1765437879182,-785.24,0.00038356,60]
[398216324,1765437879241,-685.82,0.00038356,60]
[398216325,1765437879297,-500.0,0.00038356,60]
[398216326,1765437879354,-500.0,0.00038356,60]
[398216327,1765437879408,-785.24,0.00038356,60]
[398216328,1765437879465,-151.0,0.00038356,31]
[398216329,1765437879518,-685.82,0.00038356,60]
[398216330,1765437879567,-500.0,0.00038356,60]
[398216331,1765437879618,-785.24,0.00038356,60]
[398216332,1765437879669,-685.82,0.00038356,60]
[398216333,1765437879720,-151.0,0.00038356,31]
[398216334,1765437879769,-500.0,0.00038356,60]
[398216335,1765437879818,-500.0,0.00038356,60]
[398216336,1765437879868,-1539.76,0.00038356,60]
[398216337,1765437879920,-785.24,0.00038356,60]
[398216338,1765437879968,-500.0,0.00038356,60]
[398216339,1765437880016,-500.0,0.00038356,60]
[398216340,1765437880064,-500.0,0.00038356,60]
[398216341,1765437880113,-1539.76,0.00038356,60]
[398216342,1765437880166,-500.0,0.00038356,60]
[398216343,1765437880215,-785.24,0.00038356,60]
[398216344,1765437880262,-500.0,0.00038356,60]
[398216345,1765437880316,-500.0,0.00038356,60]
[398216346,1765437880366,-1539.76,0.00038356,60]
[398216347,1765437880416,-151.0,0.00038356,31]
[398216348,1765437880465,-500.0,0.00038356,60]
[398216349,1765437880513,-785.24,0.00038356,60]
[398216350,1765437880559,-453.16326339,0.00038356,60]
[398216351,1765437880604,-500.0,0.00038356,60]
[398216352,1765437880652,-1539.76,0.00038356,60]
[398216353,1765437880698,-500.0,0.00038356,60]
[398216354,1765437880744,-151.0,0.00038356,31]
[398216355,1765437880791,-785.24,0.00038356,60]
[398216356,1765437880837,-500.0,0.00038356,60]
[398216357,1765437880883,-500.0,0.00038356,60]
[398216358,1765437880931,-1539.76,0.00038356,60]
[398216359,1765437880978,-785.24,0.00038356,60]
[398216360,1765437881025,-151.0,0.00038356,31]
[398216361,1765437881069,-500.0,0.00038356,60]
[398216362,1765437881114,-432.84191508,0.00038356,60]
[398216363,1765437881161,-1539.76,0.00038356,60]
[398216364,1765437881207,-785.24,0.00038356,60]
[398216365,1765437881254,-293.940796,0.00038356,31]
[398216366,1765437881302,-500.0,0.00038356,60]
[398216367,1765437881350,-1539.76,0.00038356,60]
[398216368,1765437881398,-785.24,0.00038356,60]
[398216369,1765437881445,-500.0,0.00038356,60]
[398216370,1765437881492,-785.24,0.00038356,60]
[398216371,1765437881541,-1539.76,0.00038356,60]
[398216372,1765437881588,-500.0,0.00038356,60]
[398216373,1765437881636,-785.24,0.00038356,60]
[398216374,1765437881686,-1539.76,0.00038356,60]
[398216375,1765437881733,-500.0,0.00038356,60]
[398216376,1765437881781,-785.24,0.00038356,60]
[398216377,1765437881827,-1539.76,0.00038356,60]
[398216378,1765437881872,-500.0,0.00038356,60]
[398216379,1765437881919,-500.0,0.00038356,60]
[398216380,1765437881972,-785.24,0.00038356,60]
[398216381,1765437882018,-386.02100112,0.00038356,60]
[398216382,1765437882062,-785.24,0.00038356,60]
[398216383,1765437882109,-500.0,0.00038356,60]
[398216384,1765437882157,-685.82,0.00038356,60]
[398216385,1765437882201,-500.0,0.00038356,60]
[398216386,1765437882249,-215.88221909,0.00038356,60]
[398216387,1765437882295,-500.0,0.00038356,60]
[398216388,1765437882353,-685.82,0.00038356,60]
[398216389,1765437882412,-500.0,0.00038356,60]
[398216390,1765437882464,-500.0,0.00038356,60]
[398216391,1765437882514,-685.82,0.00038356,60]
[398216392,1765437882559,-500.0,0.00038356,60]
[398216393,1765437882604,-500.0,0.00038356,60]
[398216394,1765437882651,-500.0,0.00038356,60]
[398216395,1765437882833,-685.82,0.00038356,60]
[398216396,1765437882882,-500.0,0.00038356,60]
[398216397,1765437882930,-500.0,0.00038356,60]
[398216398,1765437882979,-500.0,0.00038356,60]
[398216399,1765437883024,-500.0,0.00038356,60]
[398216400,1765437883076,-685.82,0.00038356,60]
[398216401,1765437883128,-1539.76,0.00038356,60]
[398216402,1765437883178,-500.0,0.00038356,60]
[398216403,1765437883227,-500.0,0.00038356,60]
[398216404,1765437883279,-500.0,0.00038356,60]
[398216405,1765437883329,-500.0,0.00038356,60]
[398216406,1765437883381,-685.82,0.00038356,60]
[398216407,1765437883429,-500.0,0.00038356,60]
[398216408,1765437883480,-1539.76,0.00038356,60]
[398216409,1765437883526,-500.0,0.00038356,60]
[398216410,1765437883576,-500.0,0.00038356,60]
[398216411,1765437883626,-500.0,0.00038356,60]
[398216412,1765437883673,-500.0,0.00038356,60]
[398216413,1765437883723,-500.0,0.00038356,60]
[398216414,1765437883779,-1539.76,0.00038356,60]
[398216415,1765437883829,-500.0,0.00038356,60]
[398216416,1765437883880,-685.82,0.00038356,60]
[398216417,1765437883929,-500.0,0.00038356,60]
[398216418,1765437883980,-500.0,0.00038356,60]
[398216419,1765437884031,-500.0,0.00038356,60]
[398216420,1765437884082,-1539.76,0.00038356,60]
[398216421,1765437884135,-500.0,0.00038356,60]
[398216422,1765437884188,-685.82,0.00038356,60]
[398216423,1765437884250,-500.0,0.00038356,60]
[398216424,1765437884302,-500.0,0.00038356,60]
[398216425,1765437884353,-1539.76,0.00038356,60]
[398216426,1765437884403,-550.04954237,0.00038356,60]
[398216427,1765437884454,-685.82,0.00038356,60]
[398216428,1765437884510,-500.0,0.00038356,60]
[398216429,1765437884560,-500.0,0.00038356,60]
[398216430,1765437884629,-1539.76,0.00038356,60]
[398216431,1765437884704,-500.0,0.00038356,60]
[398216432,1765437884783,-1539.76,0.00038356,60]
[398216433,1765437884864,-685.82,0.00038356,60]
[398216434,1765437884937,-500.0,0.00038356,60]
[398216435,1765437885006,-1539.76,0.00038356,60]
[398216436,1765437885073,-685.82,0.00038356,60]
[398216437,1765437885144,-500.0,0.00038356,60]
[398216438,1765437885211,-1539.76,0.00038356,60]
[398216439,1765437885276,-500.0,0.00038356,60]
[398216440,1765437885342,-500.0,0.00038356,60]
[398216441,1765437885408,-500.0,0.00038356,60]
[398216442,1765437885472,-505.69430071,0.00038356,60]
[398216443,1765437885537,-500.0,0.00038356,60]
[398216444,1765437885602,-500.0,0.00038356,60]
[398216445,1765437885668,-500.0,0.00038356,60]
[398216446,1765437885732,-500.0,0.00038356,60]
[398216447,1765437885797,-500.0,0.00038356,60]
[398216448,1765437885863,-500.0,0.00038356,60]
[398216449,1765437885927,-151.0,0.00038356,31]
[398216450,1765437885990,-189.9159948,0.00038356,60]
[398216451,1765437886054,-500.0,0.00038356,60]
[398216452,1765437886117,-294.859152,0.00038356,31]
[398216453,1765437886184,-500.0,0.00038356,60]
[398216454,1765437886247,-500.0,0.00038356,60]
[398216455,1765437886309,-500.0,0.00038356,60]
[398216456,1765437886371,-500.0,0.00038356,60]
[398216457,1765437886438,-500.0,0.00038356,60]
[398216458,1765437886502,-500.0,0.00038356,60]
[398216459,1765437886563,-500.0,0.00038356,60]
[398216460,1765437886627,-600.0,0.00038356,30]
[398216461,1765437886691,-1398.56,0.000384,14]
[398216462,1765437886753,-500.0,0.00038666,60]
[398216463,1765437886817,-500.0,0.00038666,60]
[398216464,1765437886881,-377.32,0.00038666,60]
[398216465,1765437887141,-234.74625585,0.00038666,60]
[398216466,1765437887215,-500.0,0.00038666,60]
[398216467,1765437887269,-500.0,0.00038666,60]
[398216468,1765437887322,-500.0,0.00038666,60]
[398216469,1765437887374,-500.0,0.00038666,60]
[398216470,1765437887428,-492.80672065,0.00038666,60]
[398216471,1765437887479,-1539.76,0.00038666,60]
[398216472,1765437887529,-1539.76,0.00038666,60]
[398216473,1765437887579,-1539.76,0.00038666,60]
[398216474,1765437887627,-1539.76,0.00038666,60]
[398216475,1765437887678,-1539.92888733,0.00038666,60]
[398216476,1765437887725,-177.99,0.000388,30]
[398216477,1765437887773,-189.60216901,0.00038861,27]
[398216478,1765437887821,-600.0,0.00038904,30]
[398216479,1765437887871,-735.42,0.00039162,120]
[398216480,1765437887918,-396.0,0.000392,120]
[398216481,1765437887966,-643.73,0.00039452,30]
[398216482,1765437888019,-1398.56,0.000396,14]
[398216483,1765437888067,-854.03,0.000396,30]
[398216484,1765437888114,-500.0,0.00039726,120]
[398216485,1765437888162,-500.0,0.00039726,120]
[398216486,1765437888213,-500.0,0.00039726,120]
[398216487,1765437888263,-500.0,0.00039726,120]
[398216488,1765437888313,-500.0,0.00039726,120]
[398216489,1765437888365,-500.0,0.00039726,120]
[398216490,1765437888417,-500.0,0.00039726,120]
[398216491,1765437888469,-500.0,0.00039726,120]
[398216492,1765437888521,-500.0,0.00039726,120]
[398216493,1765437888573,-500.0,0.00039726,120]
[398216494,1765437888623,-500.0,0.00039726,120]
[398216495,1765437888675,-500.0,0.00039726,120]
[398216496,1765437888724,-396.78594193,0.00039726,120]
[398216497,1765437888774,-200.0,0.00039794,20]
[398216498,1765437888825,-539.61,0.00039978,60]
[398216499,1765437888877,-1308.4,0.00039978,60]
[398216500,1765437888931,-950.02,0.00039978,60]
[398216501,1765437888981,-1172.6,0.00039978,60]
[398216502,1765437889031,-1408.75,0.00039978,60]
[398216503,1765437889082,-1272.07,0.00039978,60]
[398216504,1765437889139,-1475.88,0.00039978,60]
[398216505,1765437889194,-1944.18,0.00039978,60]
[398216506,1765437889250,-3038.92,0.00039978,60]
[398216507,1765437889306,-748.9,0.00039978,60]
[398216508,1765437889361,-500.0,0.00039978,60]
[398216509,1765437889418,-685.82,0.00039978,60]
[398216510,1765437889470,-500.0,0.00039979,60]
[398216511,1765437889520,-349.50256025,0.00039979,60]
[398216512,1765437889571,-500.0,0.00039979,60]
[398216513,1765437889619,-1506.03,0.00039979,60]
[398216514,1765437889668,-929.01,0.00039979,60]
[398216515,1765437889718,-1168.17,0.00039979,60]
[398216516,1765437889768,-2133.76,0.00039979,60]
[398216517,1765437889818,-455.95923578,0.00039979,60]
[398216518,1765437889879,-177.16001101,0.00039979,60]
[398216519,1765437889934,-1667.24,0.00039979,60]
[398216520,1765437889984,-2882.9,0.00039979,60]
[398216521,1765437890035,-1371.34,0.00039979,60]
[398216522,1765437890085,-1167.02,0.00039979,60]
[398216523,1765437890137,-5289.42,0.00039979,60]
[398216524,1765437890188,-723.66,0.00039979,60]
[398216525,1765437890240,-507.85365897,0.00039979,60]
[398216526,1765437890293,-500.0,0.00039979,60]
[398216527,1765437890346,-500.0,0.00039979,60]
[398216528,1765437890397,-544.17,0.00039979,60]
[398216529,1765437890448,-502.25,0.00039979,60]
[398216530,1765437890497,-510.95,0.00039979,60]
[398216531,1765437890551,-785.24,0.00039979,60]
[398216532,1765437890604,-154926.39529576,0.0003998,30]
[398216533,1765437890654,-490.92,0.0004,120]
[398216534,1765437890705,-1600.85669793,0.0004,120]
[398216535,1765437890754,-3186.07526401,0.0004,120]
[398216536,1765437890810,-225.98289376,0.0004,120]
[398216537,1765437890860,-150.0,0.0004,60]
[398216538,1765437890913,-701.77,0.00040236,30]
[398216539,1765437890966,-1398.56,0.000406,14]
[398216540,1765437891017,-2232.7713593,0.00040662,15]
[398216541,1765437891291,-200.0,0.00040666,20]
[398216542,1765437891343,-533.97,0.000407,30]
[398216543,1765437891395,-552.2,0.00040762,60]
[398216544,1765437891446,-552.2,0.00040762,60]
[398216545,1765437891494,-552.2,0.00040762,60]
[398216546,1765437891542,-552.2,0.00040762,60]
[398216547,1765437891590,-552.27,0.00040762,60]
[398216548,1765437891640,-563.02,0.00040762,60]
[398216549,1765437891690,-563.02,0.00040762,60]
[398216550,1765437891740,-563.02,0.00040762,60]
[398216551,1765437891789,-563.02,0.00040762,60]
[398216552,1765437891838,-563.03,0.00040762,60]
[398216553,1765437891886,-594.45,0.00040762,60]
[398216554,1765437891933,-594.45,0.00040762,60]
[398216555,1765437891985,-594.45,0.00040762,60]
[398216556,1765437892030,-594.45,0.00040762,60]
[398216557,1765437892076,-594.64774124,0.00040762,60]
[398216558,1765437892122,-500.0,0.00040762,60]
[398216559,1765437892170,-500.0,0.00040762,60]
[398216560,1765437892219,-500.0,0.00040762,60]
[398216561,1765437892266,-500.0,0.00040762,60]
[398216562,1765437892313,-293.8715057,0.00040762,60]
[398216563,1765437892359,-500.0,0.00040762,60]
[398216564,1765437892407,-500.0,0.00040762,60]
[398216565,1765437892455,-500.0,0.00040762,60]
[398216566,1765437892505,-500.0,0.00040762,60]
[398216567,1765437892553,-367.33288685,0.00040762,60]
[398216568,1765437892601,-1105.08,0.00040762,60]
[398216569,1765437892648,-1105.08,0.00040762,60]
[398216570,1765437892695,-1105.08,0.00040762,60]
[398216571,1765437892744,-1105.08,0.00040762,60]
[398216572,1765437892792,-1105.23333837,0.00040762,60]
[398216573,1765437892838,-226.52364565,0.00040764,30]
[398216574,1765437892885,-500.0,0.00040818,60]
[398216575,1765437892930,-1506.03,0.00040818,60]
[398216576,1765437892976,-929.01,0.00040818,60]
[398216577,1765437893023,-1168.17,0.00040818,60]
[398216578,1765437893070,-2133.76,0.00040818,60]
[398216579,1765437893123,-1667.24,0.00040818,60]
[398216580,1765437893171,-2882.9,0.00040818,60]
[398216581,1765437893223,-1371.34,0.00040818,60]
[398216582,1765437893273,-1167.02,0.00040818,60]
[398216583,1765437893332,-5289.42,0.00040818,60]
[398216584,1765437893387,-723.66,0.00040818,60]
[398216585,1765437893442,-500.0,0.00040818,60]
[398216586,1765437893495,-204.03170122,0.00040818,60]
[398216587,1765437893547,-544.17,0.00040818,60]
[398216588,1765437893597,-502.25,0.00040818,60]
[398216589,1765437893647,-510.95,0.00040818,60]
[398216590,1765437893697,-785.24,0.00040818,60]
[398216591,1765437893747,-500.0,0.00040821,120]
[398216592,1765437893798,-539.61,0.00040898,60]
[398216593,1765437893848,-539.61,0.00040898,60]
[398216594,1765437893900,-539.61,0.00040898,60]
[398216595,1765437893950,-539.61,0.00040898,60]
[398216596,1765437894001,-539.80633345,0.00040898,60]
[398216597,1765437894052,-1308.4,0.00040898,60]
[398216598,1765437894102,-1308.4,0.00040898,60]
[398216599,1765437894152,-1308.4,0.00040898,60]
[398216600,1765437894203,-1308.4,0.00040898,60]
[398216601,1765437894255,-1308.53439837,0.00040898,60]
[398216602,1765437894308,-950.02,0.00040898,60]
[398216603,1765437894361,-950.02,0.00040898,60]
[398216604,1765437894414,-950.02,0.00040898,60]
[398216605,1765437894465,-950.02,0.00040898,60]
[398216606,1765437894521,-950.24219568,0.00040898,60]
[398216607,1765437894572,-1172.6,0.00040898,60]
[398216608,1765437894624,-1172.6,0.00040898,60]
[398216609,1765437894676,-1172.6,0.00040898,60]
[398216610,1765437894727,-1172.6,0.00040898,60]
[398216611,1765437894776,-1172.80201891,0.00040898,60]
[398216612,1765437894825,-1408.75,0.00040898,60]
[398216613,1765437894875,-1408.75,0.00040898,60]
[398216614,1765437894928,-1408.75,0.00040898,60]
[398216615,1765437894977,-1408.75,0.00040898,60]
[398216616,1765437895029,-1408.91520012,0.00040898,60]
[398216617,1765437895078,-1272.07,0.00040898,60]
[398216618,1765437895132,-1272.07,0.00040898,60]
[398216619,1765437895192,-1272.07,0.00040898,60]
[398216620,1765437895247,-1272.07,0.00040898,60]
[398216621,1765437895301,-1272.24383546,0.00040898,60]
[398216622,1765437895357,-1475.88,0.00040898,60]
[398216623,1765437895411,-1475.88,0.00040898,60]
[398216624,1765437895468,-1475.88,0.00040898,60]
[398216625,1765437895520,-1475.88,0.00040898,60]
[398216626,1765437895581,-1475.95070164,0.00040898,60]
[398216627,1765437895644,-1944.18,0.00040898,60]
[398216628,1765437895703,-1894.60770089,0.00040898,60]
[398216629,1765437898281,-1619.46832729,0.00041868,10]
[398216630,1765437898334,-729.68407395,0.00041868,10]
[398216631,1765437898391,-1065.25098782,0.00041868,15]
[398216632,1765437898439,-1018.08039633,0.00041868,20]
[398216633,1765437898490,-300.0,0.00041868,15]
[398216634,1765437898538,-1296.52920489,0.00041868,15]
[398216635,1765437898584,-1000.0,0.00041868,10]
[398216636,1765437898631,-500.0,0.00041868,10]
[398216637,1765437898677,-232.92778585,0.00041868,14]
[398216638,1765437898724,-194.90094941,0.00041868,10]
[398216639,1765437898772,-231.62023693,0.00041868,15]
[398216640,1765437898818,-275.0,0.00041868,14]
[398216641,1765437898864,-10004.0,0.00041868,10]
[398216642,1765437898912,-633.39645658,0.00041868,14]
[398216643,1765437898958,-150.0,0.00041868,14]
[398216644,1765437899011,-2500.0,0.00041868,18]
[398216645,1765437899057,-2395.93713348,0.00041868,14]
[398216646,1765437899104,-2333.93526823,0.00041868,10]
[398216647,1765437899152,-2360.85746803,0.00041868,10]
[398216648,1765437899201,-1635.70959758,0.00041868,18]
[398216649,1765437899250,-166.12401378,0.00041868,10]
[398216650,1765437899300,-17555.85780134,0.00041868,20]
[398216651,1765437899351,-830.4458969,0.00041868,14]
[398216652,1765437899401,-270.48,0.00041868,120]
[398216653,1765437899451,-257.82918558,0.00041868,30]
[398216654,1765437899500,-253.5141691,0.00041868,30]
[398216655,1765437899547,-1000.0,0.00041868,60]
[398216656,1765437899592,-1000.0,0.00041868,60]
[398216657,1765437899638,-287.80037,0.00041868,60]
[398216658,1765437899684,-1000.0,0.00041868,30]
[398216659,1765437899731,-1000.0,0.00041868,60]
[398216660,1765437899776,-1000.0,0.00041868,30]
[398216661,1765437899821,-1000.0,0.00041868,30]
[398216662,1765437899863,-1000.0,0.00041868,30]
[398216663,1765437899908,-869.24974629,0.00041868,30]
[398216664,1765437899953,-1007.76575828,0.00041868,30]
[398216665,1765437899999,-1000.0,0.00041868,30]
[398216666,1765437900046,-1000.0,0.00041868,30]
[398216667,1765437900095,-1000.0,0.00041868,30]
[398216668,1765437900145,-1000.0,0.00041868,30]
[398216669,1765437900197,-1440.25071022,0.00041868,30]
[398216670,1765437900251,-1000.0,0.00041868,30]
[398216671,1765437900299,-1472.09432128,0.00041868,30]
[398216672,1765437900351,-1000.0,0.00041868,60]
[398216673,1765437900400,-1000.0,0.00041868,60]
[398216674,1765437900451,-1000.0,0.00041868,60]
[398216675,1765437900498,-1000.0,0.00041868,30]
[398216676,1765437900543,-728.25895823,0.00041868,120]
[398216677,1765437900750,-1000.0,0.00041868,120]
[398216678,1765437900806,-1000.0,0.00041868,60]
[398216679,1765437900855,-1000.0,0.00041868,30]
[398216680,1765437900905,-1000.0,0.00041868,30]
[398216681,1765437900955,-1000.0,0.00041868,30]
[398216682,1765437901006,-1000.0,0.00041868,60]
[398216683,1765437901056,-180.14194969,0.00041868,60]